[Event "Tata Steel India Women Rapid 2024"]
[Site "Kolkata"]
[Date "2024.11.13"]
[Round "1.1"]
[White "Lagno, Kateryna"]
[Black "Koneru, Humpy"]
[Result "1/2-1/2"]
[ECO "C70"]
[WhiteElo "2527"]
[BlackElo "2530"]
[Annotator "TA"]
[PlyCount "112"]
[EventDate "2024.11.06"]
[EventType "tourn"]
[EventCountry "IND"]
[SourceTitle "playchess.com"]
[Source "ChessBase"]
[SourceQuality "1"]
[TimeControl "1500+10"]

{[%evp 38,112,0,0,0,0,0,0,0,0,14,12,14,-62,0,0,0,0,0,0,0,0,0,0,0,0,9,0,0,0,8,-4,0,0,0,0,0,0,0,0,0,0,0,0,0,0,0,0,0,0,0,0,0,0,0,0,0,0,14,16,22,22,39,41,39,39,42,24,24,23,23,8,8,8,8,8,8]} 1. e4 {[%emt 0:00:02]} e5 {[%emt 0:00:03]} 2. Nf3 {[%emt 0:00:02]} Nc6 {[%emt 0:00:05]} 3. Bb5 {[%emt 0:00:03]} a6 {[%emt 0:00:03]} 4. Ba4 {[%emt 0:00:03]} Bc5 {[%emt 0:00:06]} 5. O-O {[%emt 0:00:13]} Nge7 {[%emt 0:00:05]} 6. Nxe5 {[%emt 0:00:11] C70: Ruy Lopez: 3...a6 4 Ba4, Norwegian and Delayed Schliemann.} Nxe5 {[%emt 0:00:39]} 7. d4 {[%emt 0:00:02]} b5 {[%emt 0:00:33]} 8. Bb3 {[%emt 0:00:04]} Bxd4 {[%emt 0:00:15]} 9. Qxd4 {[%emt 0:00:02]} d6 {[%emt 0:00:17]} 10. f4 {[%emt 0:00:06]} c5 {[%emt 0:00:51]} 11. Qd2 {[%emt 0:00:05]} c4 {[%emt 0:02:52]} 12. fxe5 {[%emt 0:00:06]} Qb6+ {[%emt 0:00:11]} 13. Qe3 {[%emt 0:00:04]} Qxe3+ {[%emt 0:00:15]} 14. Bxe3 {[%emt 0:00:02]} dxe5 {[%emt 0:00:19]} 15. Bc5 $146 {[%emt 0:00:05]} ({Predecessor:} 15. Bxc4 bxc4 16. Nc3 Bd7 17. Rad1 Bc6 18. Bc5 f6 19. b4 cxb3 20. axb3 Rc8 21. b4 {½-½ Park,E (2431)-Matviishen,V (2517) Saint Louis Congress GM 2022 (6)}) 15... Be6 {[%emt 0:03:47]} 16. Bxc4 {[%emt 0:00:46]} bxc4 {[%emt 0:02:24]} 17. Nc3 {[%emt 0:01:49]} Rc8 {[%emt 0:01:18]} 18. Bd6 {[%emt 0:02:28]} f6 {[%emt 0:00:13]} 19. Na4 {[%emt 0:01:44]} Rc6 {[%emt 0:02:39]} 20. Rad1 {[%emt 0:01:18]} Nc8 {[%emt 0:00:55]} 21. Bc5 {[%emt 0:01:07]} Kf7 {[%emt 0:01:31]} 22. b4 {[%emt 0:00:48]} cxb3 {[%emt 0:00:19]} 23. axb3 {[%emt 0:00:05]} Rc7 {[%emt 0:02:53]} 24. c4 {[%emt 0:04:06]} Bd7 {[%emt 0:00:36]} 25. Nb6 {[%emt 0:00:19]} (25. Nc3 $11) 25... Nxb6 {[%emt 0:00:16]} (25... Bg4 $1 $15 26. Rd5 Rb7 27. Nxc8 Rxc8 28. Rxe5 Rxb3 29. Re7+ Kg6) 26. Bxb6 $11 {[%emt 0:00:04]} Rb7 {[%emt 0:00:06]} 27. Rd6 {[%emt 0:00:34]} Rhb8 {[%emt 0:00:28]} 28. c5 $1 {[%emt 0:00:25]} Rc8 {[%emt 0:00:36]} 29. Kf2 {[%emt 0:00:20]} Bc6 {[%emt 0:01:28]} 30. Ke3 {[%emt 0:00:05]} Rd7 {[%emt 0:00:10]} 31. Rfd1 {[%emt 0:01:09]} Ke7 {[%emt 0:00:32]} 32. g4 {[%emt 0:00:34]} Rxd6 {[%emt 0:00:34]} 33. Rxd6 {[%emt 0:00:33]} Bd7 {[%emt 0:00:06]} 34. h3 {[%emt 0:00:53]} Rc6 {[%emt 0:00:29]} 35. Rd1 {[%emt 0:00:30]} Rc8 {[%emt 0:00:04]} 36. Rg1 {[%emt 0:01:34]} g5 {[%emt 0:01:31]} 37. Ra1 {[%emt 0:00:58]} Bb5 {[%emt 0:00:02]} 38. Rd1 {[%emt 0:01:01]} Bd7 {[%emt 0:00:03]} 39. b4 {[%emt 0:01:17]} h5 {[%emt 0:00:22]} 40. gxh5 {[%emt 0:00:26]} Rh8 {[%emt 0:00:02]} 41. Rd6 {[%emt 0:02:35]} Rxh5 {[%emt 0:00:22]} (41... Bxh3 $2 42. Bd8+ Ke8 (42... Rxd8 $2 43. Rxd8 Kxd8 44. h6 $18) 43. Bxf6 Rxh5 44. Bxe5 $18 (44. Rxa6 Bg2 $18)) 42. Ba5 {[%emt 0:00:52]} Rxh3+ {[%emt 0:00:14]} (42... Bxh3 43. Bd8+ (43. Rxa6 Bg2 $11) 43... Kf7 44. Rxf6+ (44. Rxa6 Be6 $16) 44... Ke8 45. Bc7 $18) 43. Kf2 {[%emt 0:00:01]} Bb5 {[%emt 0:01:18]} 44. Bd8+ {[%emt 0:00:06]} Ke8 {[%emt 0:00:14]} 45. Bxf6 {[%emt 0:00:02]} Rb3 {[%emt 0:00:08]} 46. Bxg5 {[%emt 0:00:49]} Rxb4 {[%emt 0:00:04]} 47. Re6+ {[%emt 0:00:19]} Kf7 {[%emt 0:00:16]} 48. Rxe5 {[%emt 0:00:03]} Bc6 {[%emt 0:00:19]} 49. Ke3 {[%emt 0:00:16]} a5 {[%emt 0:00:04]} 50. Re7+ {[%emt 0:00:23]} Kf8 {[%emt 0:00:16]} 51. Re6 {[%emt 0:00:03]} Bb5 {[%emt 0:00:11]} 52. Bd8 {[%emt 0:01:08]} a4 {[%emt 0:00:07]} 53. c6 {[%emt 0:00:07]} a3 {[%emt 0:00:13]} 54. Be7+ {[%emt 0:01:01]} Kf7 {[%emt 0:00:02]} 55. Bxb4 {[%emt 0:00:08]} Kxe6 {[%emt 0:00:01]} 56. Bxa3 {[%emt 0:00:01]} Bxc6 {[%emt 0:00:01]} 1/2-1/2

[Event "Tata Steel India Women Rapid 2024"]
[Site "Kolkata"]
[Date "2024.11.13"]
[Round "1.2"]
[White "Goryachkina, Aleksandra"]
[Black "Kosteniuk, Alexandra"]
[Result "1-0"]
[ECO "A14"]
[WhiteElo "2528"]
[BlackElo "2487"]
[Annotator "TA"]
[PlyCount "131"]
[EventDate "2024.11.06"]
[EventType "tourn"]
[EventCountry "IND"]
[SourceTitle "playchess.com"]
[Source "ChessBase"]
[SourceQuality "1"]
[TimeControl "1500+10"]

{[%evp 89,131,-181,-198,-299,-215,-191,-203,-200,-179,-212,-207,-187,0,0,0,-263,-263,-262,-25,-250,-253,-252,0,-310,-17,-187,-194,-697,-679,-1442,-288,-29975,-29976,-29976,-29975,-29963,-1476,-29975,0,0,29979,29980,29996,29997]} 1. d4 {[%emt 0:00:03]} Nf6 {[%emt 0:00:01]} 2. c4 {[%emt 0:00:02]} e6 {[%emt 0:00:02]} 3. Nf3 {[%emt 0:00:03]} d5 {[%emt 0:00:01]} 4. g3 {[%emt 0:00:05]} Be7 {[%emt 0:00:02]} 5. Bg2 {[%emt 0:00:10]} O-O {[%emt 0:00:02]} 6. O-O {[%emt 0:00:08]} c6 {[%emt 0:00:02]} 7. b3 {[%emt 0:00:20]} a5 {[%emt 0:00:14]} 8. Nc3 {[%emt 0:00:40]} Nbd7 {[%emt 0:00:12]} 9. Bb2 {[%emt 0:00:05]} b6 {[%emt 0:00:15] A14: English Opening: 1...e6 with b3 by White.} 10. Ne5 {[%emt 0:25:14]} Nxe5 {[%emt 0:00:53]} 11. dxe5 {[%emt 0:00:00]} Nd7 {[%emt 0:00:01]} 12. cxd5 {[%emt 0:00:00]} exd5 $146 {[%emt 0:02:17]} ({Predecessor:} 12... cxd5 13. e4 d4 14. Qxd4 Bc5 15. Qd2 Nxe5 16. Rfd1 Ba6 17. Na4 Qxd2 18. Rxd2 Bb4 19. Nxb6 Bxd2 20. Nxa8 {0-1 Sylvan,J (2335)-Jacobsen,M (2315) Hillerod 100th Ann op 2020 (8)}) 13. e4 {[%emt 0:00:00]} d4 {[%emt 0:00:18]} 14. Qxd4 {[%emt 0:00:00]} Bc5 {[%emt 0:00:01]} 15. Qd1 {[%emt 0:00:00]} Ba6 {[%emt 0:00:31]} 16. Re1 {[%emt 0:00:00]} Nxe5 {[%emt 0:01:05]} 17. Na4 {[%emt 0:00:00]} Bxf2+ {[%emt 0:06:25]} 18. Kxf2 {[%emt 0:00:00]} Nd3+ {[%emt 0:00:02]} 19. Kg1 {[%emt 0:00:00]} b5 {[%emt 0:00:02]} 20. Nc5 {[%emt 0:00:00]} Nxc5 {[%emt 0:01:32]} 21. Qg4 {[%emt 0:00:00]} Ne6 {[%emt 0:01:21]} 22. Rad1 {[%emt 0:00:00]} Qb6+ {[%emt 0:00:10]} 23. Kh1 {[%emt 0:00:00]} Rad8 {[%emt 0:00:25]} 24. Qf5 {[%emt 0:00:00]} b4 {[%emt 0:01:04]} 25. Qe5 {[%emt 0:00:00]} Qf2 {[%emt 0:02:04]} 26. Rg1 {[%emt 0:00:00]} Bb5 {[%emt 0:00:56]} 27. h4 {[%emt 0:00:00]} Rfe8 {[%emt 0:01:15]} 28. Ba1 {[%emt 0:00:00]} Qc2 {[%emt 0:01:58]} 29. Rc1 {[%emt 0:01:25]} Qxa2 {[%emt 0:00:11]} 30. Bh3 {[%emt 0:00:21]} Rd2 31. Rg2 {[%emt 0:01:44]} Rxg2 {[%emt 0:01:24]} 32. Bxg2 Qxb3 33. Kh2 {[%emt 0:00:20]} Qd3 {[%emt 0:05:54]} 34. Qf5 {[%emt 0:00:10]} Qd2 {[%emt 0:00:00]} 35. Rb1 {[%emt 0:00:00]} Rd8 {[%emt 0:00:00]} 36. Rb2 {[%emt 0:00:00]} Qd1 {[%emt 0:00:00]} 37. Rf2 {[%emt 0:00:00]} Rd7 {[%emt 0:00:00]} 38. Be5 {[%emt 0:00:00]} h6 {[%emt 0:00:00]} 39. Bh3 {[%emt 0:00:02]} Qe1 {[%emt 0:00:00]} 40. g4 {[%emt 0:00:33]} Kh8 {[%emt 0:00:00]} 41. Bg2 {[%emt 0:00:16]} Bc4 {[%emt 0:00:00]} 42. g5 {[%emt 0:00:04]} hxg5 {[%emt 0:00:05]} 43. hxg5 {[%emt 0:00:02]} Qe3 {[%emt 0:00:32]} 44. Rf3 {[%emt 0:00:13]} Qxg5 {[%emt 0:00:02]} 45. Bxg7+ {[%emt 0:00:16]} Kg8 {[%emt 0:00:25]} (45... Qxg7 46. Rg3) 46. Qh3 {[%emt 0:00:16]} (46. Bf6 {was necessary.} Qxf5 47. exf5) 46... Kxg7 {[%emt 0:00:44]} 47. Rg3 {[%emt 0:00:02]} Qxg3+ $1 {[%emt 0:00:08]} 48. Qxg3+ {[%emt 0:00:02]} Kf8 {[%emt 0:00:02]} 49. Qe5 {[%emt 0:00:07]} b3 $1 {[%emt 0:00:05]} 50. Qxa5 {[%emt 0:00:09]} Rd8 $2 {[%emt 0:00:26]} ({Black should try} 50... c5 $19 {White must now prevent ...b2.} 51. Bh3 b2 52. Bxe6 b1=Q (52... b1=B 53. Bxd7 Bba2 54. Qxc5+ Kg7 55. Qg5+ Kf8 56. Qh6+ Ke7 57. Bc6 $18) 53. Qxc5+ Re7 54. Bxc4 Qc2+ (54... Qxe4 $2 55. Bb5 $19) 55. Kg3 Qxe4) 51. Bh3 {[%emt 0:00:08]} Rb8 {[%emt 0:00:04]} 52. Qa7 $2 {[%emt 0:00:08][%mdl 8192]} (52. Qc3 $2 Ke7 53. Qg3 (53. Qxc4 $2 b2 $19) 53... Rb5 $19) (52. Bxe6 $11 Bxe6 53. Qc5+ Ke8 54. Qxc6+ Bd7 55. Qc3) 52... Rb5 $1 $19 {[%emt 0:00:05]} 53. Qa3+ {[%emt 0:00:11]} Kg8 $2 {[%emt 0:00:07]} (53... Ke8 $19 {Hoping for ...b2.} 54. Qb2 Kd7) 54. Qb2 $2 {[%emt 0:00:04]} (54. Bxe6 $11 fxe6 (54... Bxe6 55. Qa8+ Kg7 56. Qxc6 $17) 55. Qb2 (55. Qe7 $2 b2 $19)) 54... Nf4 $19 {[%emt 0:00:03]} 55. Bf5 {[%emt 0:00:07] [#]} Be6 $2 {[%emt 0:00:13]} (55... Nd3 $1 $19 {[%cal Rd3b2]} 56. Qf6 Ne5 57. Qg5+ Kf8 58. Qd8+ Kg7 59. Qg5+ Ng6) 56. Kg3 $2 {[%emt 0:00:33][%mdl 8192]} (56. Qc1 $11 {and White is okay.}) 56... Nh5+ $2 {[%emt 0:00:26]} ({Black should play} 56... Bxf5 $19 57. exf5 Nd5 (57... Rxf5 58. Kg4 $15)) 57. Kg4 $2 {[%emt 0:00:12]} (57. Kf2 $11) 57... Ng7 $19 {[%emt 0:00:01]} 58. Bxe6 $2 {[%emt 0:00:16]} (58. Kg5) 58... Nxe6 $19 {[%emt 0:00:01]} (58... fxe6 59. Kf4 $17) 59. e5 {[%emt 0:00:04]} Rb4+ $2 {[%emt 0:00:03]} (59... c5 60. Kf3 c4) 60. Kh5 $2 {[%emt 0:00:05]} (60. Kf3 $19) 60... c5 {[%emt 0:00:12]} 61. Qg2+ {[%emt 0:00:11]} Kh7 {[%emt 0:00:27]} 62. Qb2 {[%emt 0:00:07]} c4 {[%emt 0:00:19]} (62... Kg7 $142 63. Qg2+ Kf8 64. Qa8+ Ke7 65. Qa7+ Ke8 (65... Kf8 66. Qa8+ Ke7 67. Qa7+ Ke8 68. Qa8+ Nd8 69. e6 $19) 66. Qa8+ Nd8 67. e6 fxe6 68. Qg2 b2 69. Qg8+ Ke7 70. Qh7+ Nf7 71. Qb1 c4 72. Kh4 c3+ 73. Kh5 Kf8 74. Qh1 b1=Q (74... b1=B 75. Qa8+ Kg7 76. Qf8+ Kf6 77. Qe7+ Kg7 78. Qf8+ Kf6 79. Qe7+ Kxe7 $11) 75. Qa8+ Rb8 76. Qa3+ Qb4 77. Qa6 c2 (77... Kg7 78. Qc4 Rh8+ 79. Kg4 Qxc4+ 80. Kf3 c2 81. Kf2 Qf4+ 82. Ke2 c1=Q 83. Kd3 Qfe3#) 78. Qc6 Rb5+ 79. Qxb5 Qxb5+ 80. Kg4 c1=Q (80... c1=R 81. Kg3 Qd3+ 82. Kh4 Rc4+ 83. Kh5 Qh7#) 81. Kh3 Qbf1+ 82. Kh4 Qg5#) 63. Qb1+ {[%emt 0:00:21]} Kh8 $2 {[%emt 0:00:06]} (63... Kg7 {mates} 64. Qg1+ Kf8 65. Qd1 Rb6 66. Qh1 b2 67. Qa8+ Kg7 68. Qg2+ Kh7 69. Qe4+ Kg8 70. Qb1 c3 71. Kh4 Kf8 72. Kh3 Nd4 73. Qh7 b1=Q (73... b1=B 74. Qh8+ Ke7 75. Qh4+ Ke8 76. Qxd4 $15) 74. Qh8+ Ke7 75. Qh4+ Ke8 76. Qh8+ Kd7 77. e6+ Nxe6 (77... fxe6 78. Qxd4+ Ke8 79. Qc4 Qh1+ 80. Kg4 Qc6 81. Qd4 e5 82. Qxe5+ Qe6+ 83. Qxe6+ Rxe6 84. Kh5 c2 85. Kg5 c1=Q+ 86. Kf5 Qe3 87. Kg4 Rg6+ 88. Kf5 Rg5+ 89. Kf6 Qe7#) 78. Qh4 Qh1+ (78... Qd3+ {leads to mate.} 79. Qg3 Qxg3+ 80. Kxg3 c2 81. Kh2 c1=Q 82. Kg2 Rb2+ 83. Kh3 Qg1 84. Kh4 Rh2#) 79. Kg3 Qxh4+ 80. Kxh4 c2 81. Kh3 c1=Q (81... c1=B {is a self mate.} 82. Kg4 Rb3 83. Kh5 Bg5 84. Kg4 Be7 85. Kf5 Rb4 86. Ke5 Bd6+ 87. Kf6 Rf4#) 82. Kh2 Rb2+ 83. Kh3 Qg1 84. Kh4 Rh2#) 64. Kh6 $11 {[%emt 0:00:12]} Nf8 $2 {[%emt 0:00:01][%mdl 8192] [#]} (64... Kg8 $11 65. Qh1 Ra4) 65. e6 $1 {[%emt 0:00:05]} Rb6 {[%emt 0:00:27]} 66. Qb2+ {[%emt 0:00:03]} 1-0

[Event "Tata Steel India Women Rapid 2024"]
[Site "Kolkata"]
[Date "2024.11.13"]
[Round "1.3"]
[White "Dzagnidze, Nana"]
[Black "Dronavalli, Harika"]
[Result "1/2-1/2"]
[ECO "D06"]
[WhiteElo "2518"]
[BlackElo "2493"]
[Annotator "TA"]
[PlyCount "112"]
[EventDate "2024.11.06"]
[EventType "tourn"]
[EventCountry "IND"]
[SourceTitle "playchess.com"]
[Source "ChessBase"]
[SourceQuality "1"]
[TimeControl "1500+10"]

{[%evp 36,112,99,93,93,97,110,112,116,87,112,97,147,96,119,122,124,102,185,112,90,94,95,93,89,101,116,109,181,156,165,161,305,299,279,156,384,390,372,295,301,303,396,399,388,380,508,0,0,-66,-63,-104,-114,-93,-12,-12,-11,-12,-8,-8,-1,-1,0,-9,-9,-9,0,0,0,0,0,0,0,0,0,0,2,0,0]} 1. d4 {[%emt 0:00:04]} d5 {[%emt 0:00:01]} 2. c4 {[%emt 0:00:03]} c5 {[%emt 0:00:02]} 3. Nf3 {[%emt 0:00:10]} cxd4 {[%emt 0:00:09]} 4. cxd5 {[%emt 0:00:04]} Qxd5 {[%emt 0:01:01]} 5. Nc3 {[%emt 0:00:03]} Qa5 {[%emt 0:00:01]} 6. Nxd4 {[%emt 0:00:03] D06: Queen's Gambit: Symmetrical and Baltic Defences.} Nf6 {[%emt 0:00:01]} 7. a3 {[%emt 0:00:09]} e5 {[%emt 0:00:07]} 8. Nb3 {[%emt 0:04:22]} Qc7 {[%emt 0:00:05]} 9. e4 {[%emt 0:00:57]} Nc6 $146 {[%emt 0:04:11]} ({Predecessor:} 9... Be6 10. Bg5 Nfd7 11. Rc1 Nc6 12. Nd5 Qb8 13. Bb5 h6 14. Be3 a6 15. Rxc6 bxc6 16. Bxc6 {1-0 Wiaderek,P (2098)-Laduke,M (1900) FICGS rapid A 000269 email 2021 (1)}) 10. Nd5 {[%emt 0:06:48]} Qd8 {[%emt 0:03:43]} 11. Bg5 {[%emt 0:00:50]} Be7 {[%emt 0:00:01]} 12. Bxf6 {[%emt 0:04:58]} Bxf6 {[%emt 0:00:01]} 13. Rc1 {[%emt 0:00:07]} O-O {[%emt 0:01:28]} 14. Bc4 {[%emt 0:00:16]} Be6 {[%emt 0:02:43]} 15. O-O {[%emt 0:00:04]} Bg5 {[%emt 0:02:17]} 16. Rc3 {[%emt 0:00:07]} Rc8 {[%emt 0:02:19]} 17. Qd3 {[%emt 0:01:32]} a6 {[%emt 0:01:15]} 18. Nc5 {[%emt 0:00:24]} b5 {[%emt 0:01:12]} 19. Ba2 {[%emt 0:00:25]} Bxd5 {[%emt 0:00:32]} 20. Bxd5 {[%emt 0:02:10]} (20. exd5 {with more complications.} b4 21. Nb7 Qb6 22. Rxc6 Qxb7 23. Qf5) 20... b4 {[%emt 0:01:48]} 21. Rc4 $1 {[%emt 0:00:14]} bxa3 {[%emt 0:00:20]} 22. Qxa3 {[%emt 0:01:35]} (22. Nxa6 $2 axb2 23. Qc2 Qb6 24. Bxc6 Qxa6 $19) 22... Nd4 {[%emt 0:02:22]} 23. Qxa6 {[%emt 0:01:08]} Bf4 {[%emt 0:00:53]} (23... Kh8 $142 24. Nd3 f6) 24. Qa3 {[%emt 0:00:58]} (24. g3 $142) 24... Qh4 {[%emt 0:00:51]} 25. h3 {[%emt 0:00:09]} Qe7 {[%emt 0:00:22]} 26. Nd3 {[%emt 0:00:26]} Qf6 {[%emt 0:00:32]} (26... Qxa3 $16 27. bxa3 Rxc4 28. Bxc4 Rc8) 27. Nxf4 {[%emt 0:00:32]} (27. Rxc8 $18 Rxc8 28. Qa7) 27... Qxf4 $16 {[%emt 0:00:02]} 28. Qe3 {[%emt 0:00:14]} Qf6 {[%emt 0:00:51]} 29. f4 {[%emt 0:00:41]} Rxc4 {[%emt 0:00:23]} 30. Bxc4 {[%emt 0:00:02]} g6 {[%emt 0:00:20]} 31. b3 {[%emt 0:00:18]} (31. f5 {is more complex.} gxf5 32. exf5 Rb8 33. b3) 31... Qd6 {[%emt 0:00:09] [#]} (31... Kg7 $16 32. Qg3 Qc6) 32. f5 $1 $18 {[%emt 0:00:19]} gxf5 {[%emt 0:00:17]} 33. exf5 {[%emt 0:00:03]} Kh8 {[%emt 0:00:05]} (33... Qf6 {was necessary.} 34. Re1 Re8) 34. f6 $18 {[%emt 0:00:03]} Ne6 {[%emt 0:00:03]} 35. Re1 {[%emt 0:00:11]} (35. Rf5 $18) 35... Rg8 $2 {[%emt 0:00:18]} (35... Nf4 $16 {is a better defense.}) 36. Qxe5 $18 {[%emt 0:00:06]} Qb6+ {[%emt 0:00:01]} 37. Qe3 {[%emt 0:00:06]} Qc6 {[%emt 0:00:00]} 38. Qe4 {[%emt 0:00:18]} Qb6+ {[%emt 0:00:09]} 39. Kh1 {[%emt 0:00:06]} Ng5 {[%emt 0:00:06]} 40. Qf5 {[%emt 0:00:21]} Qd4 {[%emt 0:00:10]} 41. Rf1 $2 {[%emt 0:00:13]} ({White should try} 41. Bd3 $18) 41... Ne4 $11 {[%emt 0:00:06]} 42. Kh2 {[%emt 0:00:06]} (42. Bxf7 $2 {loses.} Ng3+ 43. Kh2 Nxf5 $19 (43... Nxf1+ 44. Qxf1 Qe5+ 45. Kg1 $15)) (42. Rf3 $1 $11) 42... Ng3 $15 {[%emt 0:00:02]} 43. Qf4 {[%emt 0:00:16]} Nxf1+ {[%emt 0:00:02]} 44. Qxf1 {[%emt 0:00:01] [#]} Rg6 {[%emt 0:00:11]} (44... Qe5+ $1 $17 45. Kg1 Ra8) 45. Bxf7 $11 {[%emt 0:00:22]} Rxf6 {[%emt 0:00:19]} ({Reject} 45... Qxf6 $6 46. Bc4 $16) 46. Qc4 {[%emt 0:00:00]} Qd6+ {[%emt 0:00:01]} 47. Kg1 {[%emt 0:00:15]} Qd1+ {[%emt 0:00:24]} 48. Kh2 {[%emt 0:00:01]} Qd6+ {[%emt 0:00:04]} 49. Kg1 {[%emt 0:00:01]} Qb6+ {[%emt 0:00:16]} 50. Kh1 {[%emt 0:00:07]} Rc6 {[%emt 0:00:23]} (50... Qc6 {simplifies} 51. Bd5 Qxc4 52. Bxc4 Kg7) 51. Qf4 {[%emt 0:00:03]} Rf6 {[%emt 0:00:16]} 52. Qe5 {[%emt 0:00:08]} Kg7 {[%emt 0:00:15]} 53. Bc4 {[%emt 0:00:04]} Qd6 {[%emt 0:00:09]} 54. Qe2 {[%emt 0:00:33]} Qd4 {[%emt 0:00:17]} 55. Qe7+ {[%emt 0:00:07]} Kh6 {[%emt 0:00:01]} 56. Qe2 {[%emt 0:00:32]} Rd6 {[%emt 0:00:13]} 1/2-1/2

[Event "Tata Steel India Women Rapid 2024"]
[Site "Kolkata"]
[Date "2024.11.13"]
[Round "1.4"]
[White "Vaishali, Rameshbabu"]
[Black "Divya Deshmukh"]
[Result "1/2-1/2"]
[ECO "C50"]
[WhiteElo "2490"]
[BlackElo "2493"]
[Annotator "TA"]
[PlyCount "122"]
[EventDate "2024.11.06"]
[EventType "tourn"]
[EventCountry "IND"]
[SourceTitle "playchess.com"]
[Source "ChessBase"]
[SourceQuality "1"]
[TimeControl "1500+10"]

{[%evp 42,121,6,-8,6,0,0,0,0,0,0,0,0,-36,-39,-16,0,0,0,7,60,0,0,0,29,12,12,12,12,13,25,41,38,14,18,0,19,0,0,0,0,0,0,0,0,-13,-13,-13,-17,-38,-14,-81,-87,-81,-85,-83,-56,-52,-43,-39,-32,-31,-56,-30,0,0,0,0,0,0,0,0,0,0,0,0,0,0,0,0,0,0]} 1. e4 {[%emt 0:00:04]} e5 {[%emt 0:00:03]} 2. Nf3 {[%emt 0:00:02]} Nc6 {[%emt 0:00:02]} 3. Bc4 {[%emt 0:00:03]} Bc5 {[%emt 0:00:04]} 4. d3 {[%emt 0:00:03]} Nf6 {[%emt 0:00:08]} 5. Nc3 {[%emt 0:00:04]} h6 {[%emt 0:00:10]} 6. h3 {[%emt 0:00:02]} a6 $1 {[%emt 0:00:32][%mdl 4] outshines the older 6...d6. C50: Hungarian Defence and Giuoco Pianissimo.} 7. a4 {[%emt 0:00:03]} d6 {[%emt 0:00:27]} 8. Be3 {[%emt 0:00:06]} Be6 {[%emt 0:00:36]} 9. Bxe6 {[%emt 0:00:07]} fxe6 {[%emt 0:00:10]} 10. Bxc5 {[%emt 0:00:02]} dxc5 {[%emt 0:00:04]} 11. Nb1 {[%emt 0:00:03]} b6 $146 {[%emt 0:00:17]} ({Predecessor:} 11... Nd7 12. Nbd2 Qf6 13. c3 O-O 14. a5 b5 15. axb6 cxb6 16. Nc4 Rfd8 17. O-O b5 {1-0 Van Foreest,J (2687)-Kosteniuk,A (2519) PRO League Prelim rapid 2023 (4.2)}) 12. Nbd2 {[%emt 0:00:07]} g5 {[%emt 0:00:29]} 13. Nc4 {[%emt 0:00:13]} Nd7 {[%emt 0:00:03]} 14. c3 {[%emt 0:00:55]} Qf6 {[%emt 0:02:38]} 15. Qd2 {[%emt 0:04:00]} Nf8 {[%emt 0:02:35]} 16. b4 {[%emt 0:03:32]} cxb4 {[%emt 0:00:44]} 17. cxb4 {[%emt 0:00:02]} Ng6 {[%emt 0:00:08]} 18. O-O {[%emt 0:00:42]} O-O {[%emt 0:00:31]} 19. b5 {[%emt 0:00:17]} axb5 {[%emt 0:03:16]} 20. axb5 {[%emt 0:00:02]} Nd4 {[%emt 0:00:26]} 21. Nxd4 {[%emt 0:00:08]} exd4 {[%emt 0:00:04]} 22. g3 {[%emt 0:04:02]} Kh7 {[%emt 0:07:40]} 23. Qe2 {[%emt 0:01:36]} Rae8 {[%emt 0:01:59]} 24. Ra7 {[%emt 0:06:55]} Re7 {[%emt 0:00:04]} 25. Rc1 {[%emt 0:00:05]} Rg7 {[%emt 0:00:30]} 26. Kf1 {[%emt 0:01:55]} Qd8 {[%emt 0:01:37]} 27. Ke1 {[%emt 0:00:44]} Rgf7 {[%emt 0:01:29]} 28. Rc2 {[%emt 0:00:04]} Qf6 {[%emt 0:02:01]} (28... Qe7 {feels hotter.} 29. Qh5 Qc5 30. h4 Kg7) 29. Nd2 {[%emt 0:01:00]} Qe5 {[%emt 0:00:04]} (29... Qxf2+ $2 30. Qxf2 Rxf2 31. Rcxc7+ $18 (31. Raxc7+ Kg8 $16) (31. Raxc7+ Kg8 $16)) 30. Rc6 {[%emt 0:00:59]} Re7 {[%emt 0:01:03]} (30... Kg8 $11) 31. Nc4 {[%emt 0:00:51]} ({White should try} 31. Nf3 $14 Qg7 32. e5) 31... Qg7 $1 $11 {[%emt 0:00:03]} 32. Qg4 {[%emt 0:01:13]} Qf7 {[%emt 0:00:09]} 33. Ra2 {[%emt 0:00:09]} Qf6 {[%emt 0:00:14]} 34. Kf1 {[%emt 0:00:21]} Rff7 {[%emt 0:00:07]} 35. Kg1 {[%emt 0:00:07]} Re8 {[%emt 0:00:14]} 36. e5 {[%emt 0:00:16]} Nxe5 {[%emt 0:00:09]} 37. Qe4+ {[%emt 0:00:02]} (37. Qxd4 $2 {perishes.} Nf3+ (37... Nxc6 $2 38. Qe4+ Kg7 39. bxc6 $19) 38. Kh1 Nxd4 $19) 37... Ng6 {[%emt 0:00:02]} 38. Re2 {[%emt 0:00:06]} Rfe7 {[%emt 0:00:23]} 39. Ne5 {[%emt 0:00:24]} Qxe5 {[%emt 0:00:11]} 40. Qxe5 Nxe5 {[%emt 0:00:01]} 41. Rxe5 {[%emt 0:00:03]} Kg7 {[%emt 0:00:04]} 42. Kg2 {[%emt 0:00:23]} Kf6 {[%emt 0:00:04]} 43. f4 {[%emt 0:00:01]} Ra8 {[%emt 0:00:16]} 44. Kf3 {[%emt 0:00:14]} Ra1 {[%emt 0:00:05]} 45. Re4 {[%emt 0:00:20]} Rb1 {[%emt 0:00:17]} 46. Re5 {[%emt 0:00:04]} (46. fxg5+ $11 {keeps the balance.} hxg5 47. Rxd4) 46... gxf4 $17 {[%emt 0:00:21]} 47. gxf4 {[%emt 0:00:05]} Rf1+ {[%emt 0:00:04]} 48. Kg4 {[%emt 0:00:22]} Rd1 {[%emt 0:00:09]} 49. Rf5+ {[%emt 0:00:08]} Kg7 {[%emt 0:00:12]} 50. Re5 {[%emt 0:00:02]} Kf7 {[%emt 0:00:05]} (50... Rxd3 51. Rcxe6 h5+ 52. Kf5 Rf7+ (52... Rxe6 53. Rxe6 Kf7 54. h4 $15) 53. Ke4 Rxh3 54. Rg5+ Kf8 55. Rh6) 51. f5 {[%emt 0:00:15]} exf5+ {[%emt 0:00:21]} 52. Rxf5+ {[%emt 0:00:01]} Kg7 {[%emt 0:00:02]} 53. Rf3 {[%emt 0:00:10]} Rg1+ {[%emt 0:00:06]} 54. Kh4 {[%emt 0:00:20]} Rg5 {[%emt 0:00:05]} 55. Rg3 {[%emt 0:00:14]} Re3 {[%emt 0:00:30]} 56. Rxc7+ {[%emt 0:00:07]} Kf6 {[%emt 0:00:01]} 57. Rc6+ {[%emt 0:00:07]} Kf5 {[%emt 0:00:02]} 58. Rf3+ {[%emt 0:00:15]} Rxf3 {[%emt 0:00:02]} 59. Rf6+ $1 {[%emt 0:00:01]} Ke5 {[%emt 0:00:34]} 60. Rxf3 {[%emt 0:00:08]} Ke6 {[%emt 0:00:00]} 61. Rf6+ {[%emt 0:00:06]} Kxf6 {[%emt 0:00:33]} 1/2-1/2